bitfinex/quotes_SOLUSD_20250901
["timestamp","ask_amount","ask_price","bid_price","bid_amount"]
[1756727219902,0.2,199.3,199.27,90.50519617]
[1756727220247,0.2,199.3,199.29,7.2592991]
[1756727220423,0.2,199.3,199.29,55.21741539]
[1756727220622,0.2,199.3,199.29,55.92741539]
[1756727220790,0.2,199.3,199.29,51.58776584]
[1756727224430,0.2,199.3,199.29,52.29776584]
[1756727224605,0.2,199.3,199.29,168.92741539]
[1756727225311,0.2,199.3,199.29,165.18711233]
[1756727225513,0.2,199.31,199.29,165.18711233]
[1756727225514,0.2,199.31,199.3,7.2592991]
[1756727225724,0.2,199.31,199.3,11.71116502]
[1756727226030,0.2,199.31,199.3,11.71116414]
[1756727226615,0.2,199.31,199.3,16.7287256]
[1756727227508,0.2,199.31,199.3,17.23048174]
[1756727228613,0.03,199.33,199.31,13.59559401]
[1756727228818,0.03,199.35,199.34,26.0]
[1756727229124,0.03,199.39,199.34,72.57140775]
[1756727229333,0.03,199.39,199.36,3.62964955]
[1756727229641,0.03,199.39,199.36,46.57140775]
[1756727230146,0.03,199.39,199.37,3.62964955]
[1756727230436,0.03,199.39,199.37,7.37140775]
[1756727230617,0.03,199.39,199.37,8.75755796]
[1756727230817,0.03,199.39,199.37,12.38720751]
[1756727231534,0.03,199.39,199.37,121.75755796]
[1756727231740,0.03,199.39,199.37,125.38720751]
[1756727233907,0.73,199.38,199.37,125.38720751]
[1756727234302,0.73,199.38,199.37,3.7417582]
[1756727234532,0.73,199.38,199.37,42.9217582]
[1756727234736,0.73,199.38,199.37,3.7417582]
[1756727234907,0.73,199.38,199.37,42.9217582]
[1756727235840,0.73,199.38,199.37,42.91329213]
[1756727236204,0.73,199.38,199.37,3.73329213]
[1756727236631,5.74554819,199.38,199.37,3.73329213]
[1756727238011,9.37519774,199.38,199.37,3.73329213]
[1756727239145,4.35964955,199.38,199.37,3.73329213]
[1756727239511,9.37519774,199.38,199.37,3.73329213]
[1756727239837,9.51735931,199.38,199.37,3.73329213]
[1756727240619,23.11295332,199.38,199.37,3.73329213]
[1756727240825,26.0,199.35,199.29,11.52]
[1756727241020,26.84216157,199.34,199.3,3.73564983]
[1756727241313,5.0168063,199.33,199.31,3.73564983]
[1756727241626,5.15896787,199.33,199.32,3.73564983]
[1756727242026,5.85896787,199.33,199.32,3.73564983]
[1756727242227,9.48861742,199.33,199.32,3.73564983]
[1756727244051,4.32964955,199.33,199.32,3.73564983]
[1756727244925,0.7,199.36,199.32,3.73564983]
[1756727245127,13.59559401,199.34,199.33,2.02564983]
[1756727245334,13.73775558,199.29,199.28,0.12]
[1756727245514,22.38521836,199.29,199.28,0.12]
[1756727246825,24.39663336,199.29,199.28,0.12]
[1756727252915,3.77181112,199.29,199.28,0.12]
[1756727253342,8.78962435,199.29,199.28,0.12]
[1756727253554,22.38521836,199.29,199.28,0.12]
[1756727253911,24.39663336,199.29,199.28,0.12]
[1756727254135,26.14216157,199.27,199.26,0.12]
[1756727254340,42.97181112,199.27,199.26,0.12]
[1756727254942,47.99012797,199.27,199.26,0.12]
[1756727255538,61.58572198,199.27,199.26,0.12]
[1756727256124,66.60574698,199.27,199.26,0.12]
[1756727256732,62.97609743,199.27,199.26,0.12]
[1756727256933,66.60574698,199.27,199.26,0.12]
[1756727257633,61.58572198,199.27,199.26,0.12]
[1756727257832,63.59733898,199.27,199.26,0.12]
[1756727261846,59.96768943,199.27,199.26,0.12]
[1756727262146,63.59733898,199.27,199.26,0.12]
[1756727262540,61.58572198,199.27,199.26,0.12]
[1756727262734,3.77181112,199.27,199.26,0.78]
[1756727262936,3.62964955,199.27,199.26,0.78]
[1756727263446,3.62964955,199.27,199.26,4.50829561]
[1756727265232,26.0,199.29,199.26,4.50829561]
[1756727265233,3.62964955,199.28,199.26,4.50829561]
[1756727265432,3.62964955,199.28,199.27,4.38829561]
[1756727266147,26.0,199.29,199.27,4.38829561]
[1756727266148,3.62964955,199.29,199.27,4.38829561]
[1756727266324,3.62964955,199.29,199.28,4.38829561]
[1756727266520,3.62964955,199.3,199.28,4.38829561]
[1756727266724,3.62964955,199.31,199.29,4.38829561]
[1756727266946,3.62964955,199.31,199.3,4.38829561]
[1756727267147,3.62964955,199.31,199.3,3.72829561]
[1756727267338,3.62964955,199.31,199.29,3.72829561]
[1756727267539,3.62964955,199.3,199.29,0.66]
[1756727267844,3.62964955,199.3,199.27,0.66]
[1756727268024,3.62964955,199.3,199.28,3.72767221]
[1756727268232,3.62964955,199.3,199.29,4.38767221]
[1756727268437,3.62964955,199.3,199.29,0.66]
[1756727268843,3.62964955,199.3,199.29,4.38785201]
[1756727269032,3.62964955,199.3,199.29,0.66]
[1756727269234,3.62964955,199.3,199.29,4.38783339]
[1756727269429,34.78937258,199.3,199.29,3.72783339]
[1756727269649,13.73775558,199.29,199.27,3.72783339]
[1756727269839,26.29496448,199.27,199.26,0.12]
[1756727270044,29.92461403,199.27,199.26,0.12]
[1756727271524,34.94293088,199.27,199.26,0.12]
[1756727272858,16.32902002,199.27,199.26,0.8]
[1756727273446,12.69937047,199.27,199.26,0.8]
[1756727273829,16.32902002,199.27,199.26,0.8]
[1756727274033,12.5572089,199.27,199.26,0.8]
[1756727274255,16.18685845,199.27,199.26,4.5297681]
[1756727274851,12.5572089,199.27,199.26,4.5297681]
[1756727275548,12.5572089,199.27,199.26,9.5483368]
[1756727276553,12.5572089,199.27,199.26,4.5297681]
[1756727277550,12.5572089,199.27,199.26,9.5483368]
[1756727277930,16.18685845,199.27,199.26,4.5297681]
[1756727278636,16.18685845,199.27,199.26,4.537689]
[1756727280350,16.18685845,199.27,199.26,3.857689]
[1756727280561,16.32902002,199.27,199.26,3.857689]
[1756727281158,16.18685845,199.27,199.26,4.537689]
[1756727281537,16.18685845,199.27,199.26,3.857689]
[1756727281939,16.18685845,199.27,199.26,4.537689]
[1756727282339,16.18685845,199.27,199.26,3.857689]
[1756727282552,16.18685845,199.27,199.26,4.537689]
[1756727283863,16.18685845,199.27,199.26,3.857689]
[1756727284074,16.18685845,199.27,199.26,4.537689]
[1756727284280,12.5572089,199.27,199.26,4.537689]
[1756727284659,12.5572089,199.27,199.26,9.5562577]
[1756727285678,10.04487891,199.27,199.26,9.5562577]
[1756727286879,10.04487891,199.27,199.26,13.18590725]
[1756727287081,0.03,199.28,199.26,13.18590725]
[1756727287285,0.03,199.28,199.27,8.04733855]
[1756727287981,0.03,199.28,199.27,4.30964955]
[1756727288184,0.03,199.28,199.27,8.06056142]
[1756727288365,0.03,199.3,199.27,8.06056142]
[1756727288560,0.03,199.3,199.29,3.62964955]
[1756727288879,0.03,199.3,199.29,51.59837465]
[1756727289086,0.03,199.3,199.29,52.27837465]
[1756727289404,1e-08,199.3,199.29,69.50361821]
[1756727289767,1e-08,199.3,199.29,70.00539953]
[1756727289965,1e-08,199.3,199.29,69.50361821]
[1756727290309,1e-08,199.3,199.29,65.87396866]
[1756727290658,1e-08,199.3,199.29,178.87396866]
[1756727291063,1e-08,199.3,199.29,139.67396866]
[1756727291278,1e-08,199.3,199.29,178.85396866]
[1756727291590,1e-08,199.3,199.29,157.87781323]
[1756727291794,1e-08,199.3,199.29,122.32746278]
[1756727291995,1e-08,199.3,199.29,161.50746278]
[1756727295468,1e-08,199.3,199.29,157.87781323]
[1756727295666,1e-08,199.3,199.29,161.50746278]
[1756727296489,1e-08,199.3,199.29,118.69781323]
[1756727296799,1e-08,199.3,199.29,161.50746278]
[1756727298002,1e-08,199.3,199.29,122.32746278]
[1756727298211,1e-08,199.3,199.29,118.69781323]
[1756727298499,1e-08,199.3,199.29,44.19781323]
[1756727299296,1e-08,199.3,199.29,44.87781323]
[1756727299483,1e-08,199.3,199.29,44.19781323]
[1756727299688,1e-08,199.3,199.29,47.82746278]
[1756727300319,1e-08,199.3,199.29,44.87781323]
[1756727300508,1e-08,199.3,199.29,48.50746278]
[1756727301322,1e-08,199.3,199.29,47.82746278]
[1756727301521,1e-08,199.3,199.29,44.87781323]
[1756727301721,1e-08,199.3,199.29,48.50746278]
[1756727302587,1e-08,199.3,199.29,74.50746278]
[1756727302791,0.03,199.32,199.31,29.62964955]
[1756727302992,0.03,199.32,199.31,73.82695926]
[1756727303194,0.03,199.32,199.31,74.50695926]
[1756727304319,0.03,199.33,199.31,74.50695926]
[1756727304522,0.03,199.34,199.32,4.30964955]
[1756727304705,0.03,199.35,199.33,56.40524356]
[1756727304906,0.03,199.35,199.34,8.64620418]
[1756727305228,0.03,199.35,199.34,9.32620418]
[1756727305392,0.03,199.38,199.34,9.32620418]
[1756727305587,0.03,199.38,199.36,3.62964955]
[1756727305992,0.03,199.38,199.36,4.30964955]
[1756727306491,0.03,199.38,199.36,30.30964955]
[1756727306818,0.03,199.38,199.36,69.48964955]
[1756727307016,0.03,199.38,199.36,70.87605136]
[1756727307191,0.03,199.38,199.36,74.50570091]
[1756727308524,0.03,199.38,199.36,35.32570091]
[1756727308728,0.03,199.38,199.36,186.80570091]
[1756727309026,0.03,199.38,199.36,148.32570091]
[1756727309500,0.03,199.38,199.36,187.48570091]
[1756727310023,0.03,199.38,199.36,148.32570091]
[1756727310211,0.03,199.38,199.36,187.48570091]
[1756727310412,0.03,199.38,199.33,12.54157978]
[1756727310413,0.03,199.38,199.34,5.01653803]
[1756727310613,0.03,199.38,199.35,39.16]
[1756727310614,3.65964955,199.37,199.35,39.16]
[1756727310816,0.03,199.37,199.35,39.16]
[1756727311002,0.03,199.37,199.35,39.84]
[1756727311204,0.03,199.37,199.35,39.16]
[1756727311600,0.03,199.37,199.33,3.62964955]
[1756727311795,0.03,199.37,199.34,39.16]
[1756727312299,0.03,199.37,199.35,5.01630298]
[1756727312508,0.03,199.37,199.36,42.78964955]
[1756727312700,0.03,199.37,199.36,43.46964955]
[1756727313620,0.03,199.37,199.36,156.46964955]
[1756727314533,0.03,199.37,199.36,161.48570091]
[1756727317222,0.03,199.37,199.36,118.01605136]
[1756727317425,0.03,199.37,199.36,113.0]
[1756727317635,0.03,199.37,199.36,152.16]
[1756727317855,0.03,199.37,199.36,39.16]
[1756727318141,0.03,199.37,199.36,44.17605136]
[1756727319546,0.03,199.37,199.36,39.16]
[1756727320388,0.03,199.37,199.34,8.64616896]
[1756727320652,0.03,199.37,199.31,40.55252987]
[1756727320653,3.62964955,199.35,199.31,5.01730971]
[1756727320835,3.62964955,199.34,199.29,9.44721765]
[1756727321019,3.62964955,199.34,199.3,44.17744382]
[1756727321229,5.04580394,199.37,199.3,47.80709337]
[1756727321426,3.62964955,199.32,199.29,0.12]
[1756727321686,3.62964955,199.32,199.3,39.16]
[1756727324149,0.17216157,199.37,199.29,0.12]
[1756727324150,3.62964955,199.31,199.29,0.12]
[1756727324328,3.62964955,199.3,199.29,0.12]
[1756727326145,5.01742221,199.31,199.29,0.12]
[1756727326357,3.62964955,199.3,199.29,0.12]
[1756727327058,3.62964955,199.33,199.29,0.8]
[1756727327264,3.62964955,199.3,199.29,0.12]
[1756727328868,26.14216157,199.34,199.29,0.12]
[1756727329066,3.62964955,199.31,199.29,0.12]
[1756727329271,3.62964955,199.3,199.29,0.12]
[1756727329843,31.15872631,199.34,199.29,0.12]
[1756727330067,3.62964955,199.3,199.29,0.12]
[1756727330373,0.14216157,199.33,199.29,0.12]
[1756727330557,3.62964955,199.31,199.29,0.12]
[1756727330960,3.62964955,199.3,199.29,0.12]
[1756727331772,3.62964955,199.31,199.29,0.12]
[1756727331944,3.62964955,199.33,199.3,0.68]
[1756727332849,3.62964955,199.32,199.3,0.68]
[1756727333241,29.62964955,199.34,199.31,0.68]
[1756727333556,137.52964955,199.35,199.3,8.64706226]
[1756727333758,3.62964955,199.35,199.31,0.68]
[1756727334067,3.62964955,199.35,199.32,0.68]
[1756727334273,3.77181112,199.36,199.32,0.68]
[1756727334476,3.62964955,199.35,199.32,0.68]
[1756727335561,5.045802,199.37,199.32,0.68]
[1756727335870,3.62964955,199.35,199.32,0.68]
[1756727337248,3.62964955,199.35,199.31,5.01730971]
[1756727337444,3.62964955,199.35,199.33,0.68]
[1756727337647,5.04585349,199.37,199.31,0.68]
[1756727337648,3.62964955,199.34,199.31,0.68]
[1756727338751,5.04585349,199.37,199.31,0.68]
[1756727338969,3.62964955,199.34,199.31,0.68]
[1756727339865,3.62964955,199.34,199.29,42.90964955]
[1756727340078,0.17216157,199.37,199.29,39.96]
[1756727340378,0.17216157,199.37,199.29,44.97780142]
[1756727340586,3.62964955,199.32,199.29,0.12]
[1756727340792,3.62964955,199.31,199.29,0.12]
[1756727341090,29.62964955,199.34,199.3,0.68]
[1756727341396,3.62964955,199.36,199.3,4.30964955]
[1756727341607,3.62964955,199.34,199.3,0.68]
[1756727341894,3.62964955,199.34,199.29,3.74964955]
[1756727342085,3.62964955,199.34,199.31,0.68]
[1756727342264,0.14216157,199.36,199.3,0.68]
[1756727342465,3.62964955,199.33,199.29,0.12]
[1756727342684,3.62964955,199.33,199.29,0.8]
[1756727342886,0.14216157,199.36,199.3,0.68]
[1756727343086,0.14216157,199.36,199.3,4.30964955]
[1756727343390,3.77181112,199.36,199.31,0.68]
[1756727343577,3.77181112,199.36,199.32,0.68]
[1756727343891,3.65964955,199.37,199.33,0.68]
[1756727344592,0.03,199.37,199.34,3.62964955]
[1756727344786,0.03,199.35,199.34,3.62964955]
[1756727345392,0.03,199.35,199.34,9.32620418]
[1756727346391,0.03,199.35,199.34,48.48620418]
[1756727346892,0.03,199.35,199.29,2.13]
[1756727346893,0.03,199.35,199.32,5.01699011]
[1756727347085,3.62964955,199.34,199.29,3.74964955]
[1756727347393,3.62964955,199.34,199.3,44.85751026]
[1756727347694,3.62964955,199.34,199.31,0.68]
[1756727348265,3.62964955,199.34,199.29,43.58964955]
[1756727348771,3.62964955,199.33,199.3,0.68]
[1756727349787,3.62964955,199.34,199.3,0.68]
[1756727350276,3.62964955,199.34,199.29,8.76742929]
[1756727350484,3.62964955,199.34,199.3,0.68]
[1756727350696,3.62964955,199.34,199.29,8.76742929]
[1756727350998,3.62964955,199.34,199.31,0.68]
[1756727352108,0.03,199.35,199.3,5.01748844]
[1756727352404,0.03,199.35,199.32,4.30964955]
[1756727352790,0.03,199.35,199.33,0.68]
[1756727352991,0.03,199.35,199.33,4.30964955]
[1756727353387,0.03,199.35,199.34,0.68]
[1756727354511,0.03,199.35,199.34,5.69655463]
[1756727354678,0.03,199.35,199.34,9.32620418]
[1756727355589,0.03,199.35,199.34,5.69655463]
[1756727357807,0.03,199.35,199.34,9.32620418]
[1756727361987,0.03,199.35,199.34,9.44620418]
[1756727362884,0.03,199.35,199.34,5.13655463]
[1756727363189,0.03,199.35,199.34,0.12]
[1756727363503,0.03,199.35,199.34,39.28]
[1756727364103,0.03,199.35,199.34,44.29655463]
[1756727364419,0.03,199.35,199.34,48.59620418]
[1756727366514,0.03,199.37,199.35,3.62964955]
[1756727366812,0.03,199.37,199.36,47.92520761]
[1756727367596,0.03,199.37,199.36,42.90915625]
[1756727368912,0.03,199.37,199.36,3.74915625]
[1756727369205,0.03,199.37,199.36,42.88915625]
[1756727370399,0.03,199.37,199.36,3.74915625]
[1756727371623,3.65964955,199.37,199.36,3.74915625]
[1756727371795,3.65964955,199.37,199.34,39.26]
[1756727371989,3.65964955,199.37,199.35,3.75035728]
[1756727372309,0.03,199.37,199.36,3.75035728]
[1756727374289,3.65964955,199.37,199.36,3.75035728]
[1756727376102,0.03,199.37,199.36,3.75035728]
[1756727377091,0.03,199.37,199.36,4.42035728]
[1756727379415,0.03,199.37,199.36,9.43640864]
[1756727381420,0.03,199.37,199.36,4.42035728]
[1756727382414,0.03,199.37,199.36,0.67]
[1756727382623,0.03,199.37,199.36,4.42511456]
[1756727383128,0.03,199.37,199.36,3.75511456]
[1756727384217,0.03,199.37,199.36,4.42511456]
[1756727387037,0.03,199.37,199.36,3.75511456]
[1756727387339,0.03,199.37,199.36,4.42511456]
[1756727387504,0.03,199.37,199.36,9.44116592]
[1756727388628,0.03,199.39,199.36,13.07081547]
[1756727388836,0.03,199.39,199.37,48.58078998]
[1756727389038,0.03,199.39,199.38,3.75511456]
[1756727389331,0.03,199.39,199.38,4.42511456]
[1756727389913,0.03,199.39,199.38,8.05476411]
[1756727391029,0.03,199.39,199.38,13.0703123]
[1756727392725,0.03,199.39,199.38,3.75511456]
[1756727392908,0.03,199.39,199.38,42.89511456]
[1756727393110,0.03,199.39,199.38,42.89472561]
[1756727393311,0.03,199.39,199.38,43.56504972]
[1756727393734,0.03,199.39,199.38,39.81]
[1756727394244,0.03,199.39,199.36,0.67]
[1756727394428,0.03,199.39,199.38,39.12]
[1756727395919,3.65964955,199.39,199.38,39.12]
[1756727396123,3.65964955,199.39,199.36,5.0159768]
[1756727396436,3.65964955,199.39,199.37,39.12]
[1756727396642,0.03,199.39,199.37,39.12]
[1756727396832,0.03,199.39,199.37,39.79]
[1756727397427,0.03,199.39,199.37,39.12]
[1756727397628,0.03,199.39,199.37,39.79]
[1756727400432,0.03,199.39,199.38,0.67]
[1756727401759,0.03,199.39,199.37,39.12]
[1756727402053,0.03,199.39,199.35,3.74964955]
[1756727402054,3.62964955,199.38,199.35,0.12]
[1756727402256,3.62964955,199.38,199.36,39.12]
[1756727402437,3.65964955,199.39,199.36,39.79]
[1756727402633,3.65964955,199.39,199.37,0.67]
[1756727402962,3.65964955,199.39,199.38,0.67]
[1756727402963,0.03,199.39,199.38,0.67]
[1756727403650,0.03,199.39,199.38,5.68554819]
[1756727403964,0.03,199.39,199.38,44.80554819]
[1756727405766,0.03,199.39,199.38,48.43519774]
[1756727405947,0.03,199.43,199.38,52.19332282]
[1756727406268,0.03,199.43,199.39,8.05777463]
[1756727406576,3.65964955,199.43,199.4,42.87812508]
[1756727406779,3.65964955,199.43,199.41,3.75812508]
[1756727407072,0.03,199.43,199.42,3.75812508]
[1756727407246,0.03,199.43,199.42,4.42812508]
[1756727408384,0.03,199.43,199.42,3.75812508]
[1756727409288,3.65964955,199.43,199.42,3.75812508]
[1756727409789,3.65964955,199.43,199.42,3.75701543]
[1756727411194,22.41169585,199.43,199.42,3.75701543]
[1756727411372,37.48669485,199.43,199.42,3.75701543]
[1756727411880,26.0,199.4,199.35,39.91]
[1756727412080,3.62964955,199.38,199.36,0.67]
[1756727412596,31.01506496,199.4,199.36,0.67]
[1756727412800,3.62964955,199.38,199.36,0.67]
[1756727413413,3.62964955,199.4,199.37,0.67]
[1756727413688,3.62964955,199.4,199.38,0.67]
[1756727413884,3.62964955,199.39,199.35,44.23610762]
[1756727414057,3.62964955,199.39,199.36,4.42733156]
[1756727414263,3.62964955,199.39,199.37,4.42733156]
[1756727414462,5.01510827,199.4,199.38,3.75733156]
[1756727414763,5.01510827,199.4,199.39,3.75733156]
[1756727415494,34.78691939,199.4,199.39,3.75733156]
[1756727418828,91.11216295,199.4,199.39,3.75733156]
[1756727419112,65.11216295,199.4,199.39,3.75733156]
[1756727419911,39.59559401,199.36,199.35,0.12]
[1756727420237,43.36740513,199.36,199.35,0.12]
[1756727420908,50.39406249,199.36,199.35,0.12]
[1756727421110,89.49406249,199.36,199.35,0.12]
[1756727421446,46.76441294,199.36,199.35,0.12]
[1756727421739,89.49406249,199.36,199.35,0.12]
[1756727421940,29.62964955,199.36,199.35,0.83]
[1756727423744,29.62964955,199.36,199.35,0.12]
[1756727424536,34.78786248,199.36,199.35,0.12]
[1756727424728,34.78786248,199.36,199.35,0.83]
[1756727424729,29.77181112,199.36,199.35,0.83]
[1756727424947,2.010303,199.38,199.35,0.83]
[1756727425239,3.62964955,199.38,199.36,0.71]
[1756727425424,3.62964955,199.37,199.36,0.71]
[1756727425830,0.14216157,199.39,199.36,0.71]
[1756727426029,3.62964955,199.37,199.35,0.12]
[1756727426230,0.14216157,199.4,199.35,5.13628893]
[1756727426433,3.62964955,199.38,199.35,5.13628893]
[1756727426633,3.62964955,199.38,199.36,0.71]
[1756727426813,3.62964955,199.38,199.37,0.71]
[1756727427011,3.62964955,199.38,199.35,0.83]
[1756727427215,3.62964955,199.36,199.35,0.83]
[1756727428545,3.62964955,199.37,199.35,0.83]
[1756727428753,3.62964955,199.37,199.35,0.12]
[1756727428918,3.62964955,199.37,199.36,0.71]
[1756727429344,5.01533314,199.39,199.36,0.71]
[1756727429646,3.62964955,199.37,199.36,0.71]
[1756727431538,3.62964955,199.39,199.36,0.71]
[1756727431928,3.62964955,199.39,199.37,3.75313932]
[1756727432134,3.62964955,199.39,199.38,3.75313932]
[1756727432443,3.62964955,199.39,199.38,4.46313932]
[1756727432632,29.62964955,199.4,199.38,4.46313932]
[1756727432951,3.62964955,199.41,199.39,4.46313932]
[1756727433249,3.62964955,199.41,199.4,3.75313932]
[1756727433433,3.65964955,199.41,199.4,3.75313932]
[1756727434655,3.65964955,199.41,199.4,3.75284085]
[1756727435561,0.03,199.41,199.4,4.46284085]
[1756727435734,0.03,199.41,199.4,9.47788598]
[1756727435940,0.03,199.43,199.4,9.47788598]
[1756727436142,0.03,199.43,199.41,4.46284085]
[1756727436348,0.03,199.43,199.42,3.75284085]
[1756727436552,3.65964955,199.43,199.42,3.75284085]
[1756727436853,0.17216157,199.43,199.42,3.75284085]
[1756727437036,3.80181112,199.43,199.42,3.75284085]
[1756727437936,8.81610184,199.43,199.42,3.75284085]
[1756727438143,22.41169585,199.43,199.42,3.75284085]
[1756727438539,31.20713385,199.43,199.42,3.75284085]
[1756727441471,26.0,199.4,199.37,0.71]
[1756727441636,0.14216157,199.39,199.38,3.75414996]
[1756727441834,3.77181112,199.39,199.38,4.46414996]
[1756727443162,26.0,199.4,199.38,4.46414996]
[1756727443345,0.17216157,199.43,199.39,4.46414996]
[1756727443669,3.62964955,199.42,199.4,4.46414996]
[1756727443839,3.62964955,199.42,199.41,4.46414996]
[1756727445060,3.65964955,199.43,199.41,0.71]
[1756727445262,0.03,199.43,199.42,3.75367631]
[1756727445452,0.03,199.43,199.42,4.46367631]
[1756727445863,0.03,199.43,199.42,4.46318168]
[1756727448674,3.65964955,199.43,199.42,4.46136488]
[1756727448853,0.03,199.43,199.42,3.75136488]
[1756727449767,3.65964955,199.43,199.42,3.75136488]
[1756727450770,0.03,199.43,199.42,4.46136488]
[1756727450955,3.65964955,199.43,199.42,4.46136488]
[1756727455975,3.65964955,199.43,199.42,4.45980287]
[1756727456683,3.65964955,199.43,199.42,4.45945729]
[1756727456975,0.03,199.43,199.42,9.47399946]
[1756727457763,0.03,199.43,199.42,4.45945729]
[1756727459455,0.03,199.43,199.42,9.47399946]
[1756727459979,0.03,199.43,199.42,4.45945729]
[1756727464570,3.65964955,199.43,199.42,3.74945729]
[1756727465254,3.65964955,199.43,199.42,3.74676105]
[1756727465452,3.65964955,199.43,199.42,4.42676105]
[1756727465860,3.65964955,199.43,199.42,4.42735716]
[1756727466161,0.03,199.43,199.42,4.42735716]
[1756727466362,0.03,199.43,199.42,13.07154888]
[1756727466874,0.03,199.43,199.42,9.44189933]
[1756727468457,0.03,199.43,199.42,4.42735716]
[1756727469674,0.03,199.43,199.42,9.44189933]
[1756727472484,0.03,199.43,199.42,13.07154888]
[1756727475999,0.03,199.43,199.42,13.07299149]
[1756727477999,0.03,199.43,199.42,8.76334194]
[1756727478168,0.03,199.43,199.42,9.44334194]
[1756727478963,0.03,199.43,199.42,3.74879977]
[1756727479169,3.65964955,199.43,199.42,3.74879977]
[1756727479378,0.03,199.43,199.42,3.75054768]
[1756727479582,3.65964955,199.43,199.41,0.12]
[1756727483078,0.03,199.43,199.41,0.12]
[1756727483481,0.03,199.43,199.42,0.69]
[1756727484671,0.03,199.43,199.42,4.44325651]
[1756727485573,0.03,199.43,199.42,3.75325651]
[1756727485793,0.03,199.43,199.42,4.44325651]
[1756727486382,0.03,199.43,199.42,4.44504552]
[1756727489388,0.03,199.45,199.42,4.44504552]
[1756727489584,0.03,199.45,199.43,3.75504552]
[1756727489787,0.03,199.45,199.44,3.75504552]
[1756727491180,0.03,199.45,199.44,9.45908483]
[1756727491702,0.03,199.45,199.44,4.44504552]
[1756727492216,0.03,199.45,199.44,9.45908483]
[1756727493794,0.03,199.45,199.44,3.75504552]
[1756727494189,0.03,199.45,199.44,4.44504552]
[1756727494392,0.03,199.45,199.44,9.45908483]
[1756727494594,0.03,199.45,199.44,9.33368886]
[1756727494988,0.03,199.45,199.44,5.70403931]
[1756727495509,0.03,199.45,199.44,9.46266717]
[1756727495706,0.03,199.45,199.44,4.44862786]
[1756727495905,0.03,199.47,199.44,4.44862786]
[1756727496212,0.03,199.47,199.45,4.44862786]
[1756727496513,0.03,199.47,199.46,3.75862786]
[1756727497187,3.65964955,199.47,199.46,3.75856526]
[1756727498125,0.03,199.47,199.46,4.44856526]
[1756727498289,0.03,199.47,199.46,3.75856526]
[1756727498792,0.03,199.47,199.46,4.44856526]
[1756727500123,0.03,199.47,199.46,13.09175135]
[1756727500489,0.03,199.47,199.46,9.4621018]
[1756727500708,0.03,199.47,199.46,13.09175135]
[1756727505435,0.03,199.47,199.46,9.4621018]
[1756727505722,0.03,199.47,199.46,13.09175135]
[1756727505929,0.14216157,199.53,199.46,13.09175135]
[1756727506100,3.62964955,199.52,199.47,8.07821481]
[1756727506295,3.62964955,199.52,199.48,4.44856526]
[1756727506496,3.62964955,199.52,199.49,3.75856526]
[1756727506719,3.62964955,199.52,199.5,3.75856526]
[1756727506929,3.62964955,199.52,199.51,3.75856526]
[1756727507598,0.14216157,199.54,199.49,0.69]
[1756727507914,0.14216157,199.54,199.5,4.44349349]
[1756727508223,3.62964955,199.52,199.51,3.75349349]
[1756727508403,3.62964955,199.53,199.51,3.752752]
[1756727508719,0.14216157,199.54,199.52,3.752752]
[1756727508934,0.14216157,199.54,199.53,3.752752]
[1756727509106,13.73775558,199.54,199.53,3.752752]
[1756727509709,18.74928209,199.54,199.53,3.752752]
[1756727509897,22.37893164,199.54,199.53,3.752752]
[1756727510098,28.08278364,199.54,199.53,3.752752]
[1756727510426,54.08278364,199.54,199.53,3.752752]
[1756727510633,28.08278364,199.54,199.53,3.752752]
[1756727511299,54.08278364,199.54,199.53,3.752752]
[1756727511505,28.08278364,199.54,199.53,3.752752]
[1756727513041,84.44160758,199.54,199.53,3.752752]
[1756727513329,88.07125713,199.54,199.53,3.752752]
[1756727513516,49.07125713,199.54,199.53,3.752752]